Workbook

Sheet Master database
B1: Chemical | C1: CAS No. | D1: 2018 Standards Inhalation Unit Risk Factor (µg/m3)-1 | E1: 2018 Standards Inhalation Reference Concentration (mg/m3) | F1: 2018 Air analytical reporting limit, Method TO-15 (µg/m3) | G1: 2018 Soil gas analytical reporting limit, Method TO-15 (µg/m3)
A2: 1 | B2: Acenaphthene | C2: 83-32-9 | D2: NA | E2: NA
A3: 3 | B3: Acetone (2-Propanone) | C3: 67-64-1 | D3: NA | E3: NA | F3: 12 | G3: =F3*10 -> 120
A4: 4 | B4: Acetophenone | C4: 98-86-2 | D4: NA | E4: NA
A5: 7 | B5: Aldrin | C5: 309-00-2 | D5: NA | E5: NA
A6: 8 | B6: Aluminum (total) | C6: 7429-90-5 | D6: NA | E6: 0.005
A7: 9 | B7: Anthracene | C7: 120-12-7 | D7: NA | E7: NA
A8: 10 | B8: Antimony (total) | C8: 7440-36-0 | D8: NA | E8: NA
A9: 11 | B9: Arsenic (total) | C9: 7440-38-2 | D9: 0.0043 | E9: NA
A10: 12 | B10: Atrazine | C10: 1912-24-9 | D10: NA | E10: NA
A11: 13 | B11: Barium (total) | C11: 7440-39-3 | D11: NA | E11: 0.0005
A12: 14 | B12: Benzaldehyde | C12: 100-52-7 | D12: NA | E12: NA
A13: 15 | B13: Benzene | C13: 71-43-2 | D13: 7.8e-06 | E13: 0.03 | F13: 0.64 | G13: =F13*10 -> 6.4
A14: 17 | B14: Benzo(a)anthracene (1,2-Benzanthracene) | C14: 56-55-3 | D14: 6e-05 | E14: NA
A15: 18 | B15: Benzo(a)pyrene | C15: 50-32-8 | D15: 0.0006 | E15: 2e-06
A16: 19 | B16: Benzo(b)fluoranthene (3,4-Benzofluoranthene) | C16: 205-99-2 | D16: 6e-05 | E16: NA
A17: 21 | B17: Benzo(k)fluoranthene | C17: 207-08-9 | D17: 6e-06 | E17: NA
A18: 23 | B18: Beryllium | C18: 7440-41-7 | D18: 0.0024 | E18: 2e-05
A19: 24 | B19: 1,1'-Biphenyl | C19: 92-52-4 | D19: NA | E19: NA
A20: 25 | B20: Bis(2-chloroethoxy)methane | C20: 111-91-1 | D20: NA | E20: NA
A21: 26 | B21: Bis(2-chloroethyl)ether | C21: 111-44-4 | D21: NA | E21: NA
A22: 27 | B22: Bis(2-ethylhexyl)phthalate | C22: 117-81-7 | D22: NA | E22: NA
A23: 28 | B23: Bromodichloromethane (Dichlorobromomethane) | C23: 75-27-4 | D23: NA | E23: NA | F23: 1.3 | G23: =F23*10 -> 13
A24: 30 | B24: Bromoform | C24: 75-25-2 | D24: NA | E24: NA | F24: 2.1 | G24: =F24*10 -> 21
A25: 31 | B25: Bromomethane (Methyl bromide) | C25: 74-83-9 | D25: NA | E25: 0.005 | F25: 0.78 | G25: =F25*10 -> 7.8
A26: 33 | B26: 2-Butanone (Methyl ethyl ketone) (MEK) | C26: 78-93-3 | D26: NA | E26: 5 | F26: 1.5 | G26: =F26*10 -> 15
A27: 34 | B27: Butylbenzyl phthalate | C27: 85-68-7 | D27: NA | E27: NA
A28: 35 | B28: Cadmium | C28: 7440-43-9 | D28: 0.0018 | E28: 1e-05
A29: 36 | B29: Caprolactam | C29: 105-60-2 | D29: NA | E29: 0.0022
A30: 38 | B30: Carbon disulfide | C30: 75-15-0 | D30: NA | E30: 0.7 | F30: 1.6 | G30: =F30*10 -> 16
A31: 39 | B31: Carbon tetrachloride | C31: 56-23-5 | D31: 6e-06 | E31: 0.1 | F31: 1.3 | G31: =F31*10 -> 13
A32: 40 | B32: Chlordane (alpha and gamma forms summed) | C32: 57-74-9 | D32: NA | E32: 0.0007
A33: 41 | B33: 4-Chloroaniline | C33: 106-47-8 | D33: NA | E33: NA
A34: 42 | B34: Chlorobenzene | C34: 108-90-7 | D34: NA | E34: 0.05 | F34: 0.92 | G34: =F34*10 -> 9.2
A35: 44 | B35: Chloroethane (Ethyl chloride) | C35: 75-00-3 | D35: NA | E35: 10 | F35: 1.3 | G35: =F35*10 -> 13
A36: 45 | B36: Chloroform | C36: 67-66-3 | D36: NA | E36: 0.098 | F36: 0.98 | G36: =F36*10 -> 9.8
A37: 46 | B37: Chloromethane (Methyl chloride) | C37: 74-87-3 | D37: NA | E37: 0.09 | F37: 1 | G37: =F37*10 -> 10
A38: 48 | B38: 2-Chloronaphthalene | C38: 91-58-7 | D38: NA | E38: NA
A39: 49 | B39: 2-Chlorophenol (o-Chlorophenol) | C39: 95-57-8 | D39: NA | E39: NA
A40: 52 | B40: Chrysene | C40: 218-01-9 | D40: 6e-07 | E40: NA
A41: 53 | B41: Cobalt (total) | C41: 7440-48-4 | D41: 0.009 | E41: 6e-06
A42: 54 | B42: Copper (total) | C42: 7440-50-8 | D42: NA | E42: NA
A43: 55 | B43: Cyanide | C43: 57-12-5 | D43: NA | E43: 0.0008
A44: 56 | B44: Cyclohexane | C44: 110-82-7 | D44: NA | E44: 6 | F44: 0.69 | G44: =F44*10 -> 6.9
A45: 57 | B45: 4,4'-DDD (p,p'-TDE) | C45: 72-54-8 | D45: NA | E45: NA
A46: 58 | B46: 4,4'-DDE (p,p'-DDX) | C46: 72-55-9 | D46: NA | E46: NA
A47: 59 | B47: 4,4'-DDT | C47: 50-29-3 | D47: NA | E47: NA
A48: 60 | B48: Dibenz(a,h)anthracene | C48: 53-70-3 | D48: 0.0006 | E48: NA
A49: 61 | B49: Dibromochloromethane (Chlorodibromomethane) | C49: 124-48-1 | D49: NA | E49: NA | F49: 1.7 | G49: =F49*10 -> 17
A50: 62 | B50: 1,2-Dibromo-3-chloropropane | C50: 96-12-8 | D50: 0.006 | E50: 0.0002
A51: 63 | B51: 1,2-Dibromoethane (Ethylene dibromide) | C51: 106-93-4 | D51: 0.0006 | E51: 0.009 | F51: 1.5 | G51: =F51*10 -> 15
A52: 64 | B52: 1,2-Dichlorobenzene (o-Dichlorobenzene) | C52: 95-50-1 | D52: NA | E52: 0.2 | F52: 1.2 | G52: =F52*10 -> 12
A53: 65 | B53: 1,3-Dichlorobenzene (m-Dichlorobenzene) | C53: 541-73-1 | D53: NA | E53: NA
A54: 66 | B54: 1,4-Dichlorobenzene (p-Dichlorobenzene) | C54: 106-46-7 | D54: NA | E54: 0.8 | F54: 1.2 | G54: =F54*10 -> 12
A55: 67 | B55: 3,3'-Dichlorobenzidine | C55: 91-94-1 | D55: NA | E55: NA
A56: 68 | B56: Dichlorodifluoromethane (Freon 12) | C56: 75-71-8 | D56: NA | E56: NA | F56: 2.5 | G56: =F56*10 -> 25
A57: 69 | B57: 1,1-Dichloroethane | C57: 75-34-3 | D57: NA | E57: NA | F57: 0.81 | G57: 8.1
A58: 70 | B58: 1,2-Dichloroethane | C58: 107-06-2 | D58: NA | E58: 0.007 | F58: 0.81 | G58: 8.1
A59: 71 | B59: 1,1-Dichloroethene (1,1-Dichloroethylene) | C59: 75-35-4 | D59: NA | E59: 0.02 | F59: 0.79 | G59: 7.9
A60: 72 | B60: 1,2-Dichloroethene (cis) (c-1,2-Dichloroethylene) | C60: 156-59-2 | D60: NA | E60: NA | F60: 0.79 | G60: 7.9
A61: 73 | B61: 1,2-Dichloroethene (trans) (t-1,2-Dichloroethylene) | C61: 156-60-5 | D61: NA | E61: NA | F61: 0.79 | G61: 7.9
A62: 75 | B62: 2,4-Dichlorophenol | C62: 120-83-2 | D62: NA | E62: NA
A63: 76 | B63: 1,2-Dichloropropane | C63: 78-87-5 | D63: 3.7e-06 | E63: 0.004 | F63: 0.92 | G63: =F63*10 -> 9.2
A64: 77 | B64: 1,3-Dichloropropene (total) | C64: 542-75-6 | D64: 4e-06 | E64: 0.02 | F64: 0.91 | G64: =F64*10 -> 9.1
A65: 78 | B65: Dieldrin | C65: 60-57-1 | D65: NA | E65: NA
A66: 79 | B66: Diethylphthalate | C66: 84-66-2 | D66: NA | E66: NA
A67: 80 | B67: 2,4-Dimethylphenol | C67: 105-67-9 | D67: NA | E67: NA
A68: 82 | B68: Di-n-butyl phthalate | C68: 84-74-2 | D68: NA | E68: NA
A69: 84 | B69: 2,4-Dinitrophenol | C69: 51-28-5 | D69: NA | E69: NA
A70: 87 | B70: 2,4-Dinitrotoluene/2,6-Dinitrotoluene (mixture) | C70: 25321-14-6 | D70: NA | E70: NA
A71: 88 | B71: Di-n-octyl phthalate | C71: 117-84-0 | D71: NA | E71: NA
A72: 89 | B72: 1,4-Dioxane | C72: 123-91-1 | D72: 5e-06 | E72: 0.03 | F72: 0.72 | G72: =F72*10 -> 7.2
A73: 91 | B73: Endosulfan I and Endosulfan II (alpha and beta) (summed) | C73: 115-29-7 | D73: NA | E73: NA
A74: 93 | B74: Endrin | C74: 72-20-8 | D74: NA | E74: NA
A75: 94 | B75: Ethylbenzene | C75: 100-41-4 | D75: 2.5e-06 | E75: 1 | F75: 0.87 | G75: =F75*10 -> 8.7
A76: 95 | B76: Extractable Petroleum Hydrocarbons (No. 2 Fuel Oil and Diesel) | C76: various | D76: NA | E76: NA
A77: 95 | B77: Extractable Petroleum Hydrocarbons (Other) | C77: various | D77: NA | E77: NA
A78: 96 | B78: Fluoranthene | C78: 206-44-0 | D78: NA | E78: NA
A79: 97 | B79: Fluorene | C79: 86-73-7 | D79: NA | E79: NA
A80: 98 | B80: alpha-HCH (alpha-BHC) | C80: 319-84-6 | D80: NA | E80: NA
A81: 99 | B81: beta-HCH (beta-BHC) | C81: 319-85-7 | D81: NA | E81: NA
A82: 100 | B82: Heptachlor | C82: 76-44-8 | D82: NA | E82: NA
A83: 101 | B83: Heptachlor epoxide | C83: 1024-57-3 | D83: NA | E83: NA
A84: 102 | B84: Hexachlorobenzene | C84: 118-74-1 | D84: NA | E84: NA
A85: 103 | B85: Hexachloro-1,3-butadiene | C85: 87-68-3 | D85: NA | E85: NA | F85: 2.1 | G85: =F85*10 -> 21
A86: 104 | B86: Hexachlorocyclopentadiene | C86: 77-47-4 | D86: NA | E86: 0.0002
A87: 105 | B87: Hexachloroethane | C87: 67-72-1 | D87: NA | E87: 0.03
A88: 106 | B88: n-Hexane | C88: 110-54-3 | D88: NA | E88: 0.7 | F88: 0.7 | G88: =F88*10 -> 7
A89: 107 | B89: 2-Hexanone | C89: 591-78-6 | D89: NA | E89: 0.03
A90: 108 | B90: Indeno(1,2,3-cd)pyrene | C90: 193-39-5 | D90: 6e-05 | E90: NA
A91: 110 | B91: Isophorone | C91: 78-59-1 | D91: NA | E91: 2
A92: 111 | B92: Isopropylbenzene | C92: 98-82-8 | D92: NA | E92: 0.4
A93: 112 | B93: Lead (total) | C93: 7439-92-1 | D93: NA | E93: NA
A94: 113 | B94: Lindane (gamma-HCH)(gamma-BHC) | C94: 58-89-9 | D94: NA | E94: NA
A95: 115 | B95: Manganese (total) | C95: 7439-96-5 | D95: NA | E95: 5e-05
A96: 116 | B96: Mercury (total) | C96: 7439-97-6 | D96: NA | E96: 0.0003 | F96: 1 | G96: =F96*10 -> 10
A97: 117 | B97: Methoxychlor | C97: 72-43-5 | D97: NA | E97: NA
A98: 118 | B98: Methyl acetate | C98: 79-20-9 | D98: NA | E98: NA
A99: 120 | B99: Methylene chloride (Dichloromethane) | C99: 75-09-2 | D99: 1e-08 | E99: 0.6 | F99: 1.7 | G99: =F99*10 -> 17
A100: 121 | B100: 2-Methylnaphthalene | C100: 91-57-6 | D100: NA | E100: NA
A101: 122 | B101: 4-Methyl-2-pentanone (MIBK) | C101: 108-10-1 | D101: NA | E101: 3 | F101: 2 | G101: =F101*10 -> 20
A102: 123 | B102: 2-Methylphenol (o-cresol) | C102: 95-48-7 | D102: NA | E102: NA
A103: 124 | B103: 4-Methylphenol (p-cresol) | C103: 106-44-5 | D103: NA | E103: NA
A104: 125 | B104: Methyl tert-butyl ether (MTBE) | C104: 1634-04-4 | D104: 2.6e-07 | E104: 3 | F104: 0.72 | G104: =F104*10 -> 7.2
A105: 126 | B105: Naphthalene | C105: 91-20-3 | D105: 3.4e-05 | E105: 0.003 | F105: 2.6 | G105: =F105*10 -> 26
A106: 127 | B106: Nickel (total) | C106: 7440-02-0 | D106: 0.00024 | E106: 1.4e-05
A107: 129 | B107: 4-Nitroaniline | C107: 100-01-6 | D107: NA | E107: 0.006
A108: 131 | B108: Nitrobenzene | C108: 98-95-3 | D108: 4e-05 | E108: 0.009
A109: 132 | B109: N-Nitrosodi-n-propylamine | C109: 621-64-7 | D109: NA | E109: NA
A110: 133 | B110: N-Nitrosodiphenylamine | C110: 86-30-6 | D110: NA | E110: NA
A111: 134 | B111: 2,2'-oxybis(1-chloropropane) | C111: 108-60-1 | D111: NA | E111: NA
A112: 135 | B112: Pentachlorophenol | C112: 87-86-5 | D112: NA | E112: NA
A113: 137 | B113: Phenol | C113: 108-95-2 | D113: NA | E113: 0.2
A114: 138 | B114: Polychlorinated biphenyls (PCBs) | C114: 1336-36-3 | D114: NA | E114: NA
A115: 139 | B115: Pyrene | C115: 129-00-0 | D115: NA | E115: NA
A116: 140 | B116: Selenium (total) | C116: 7782-49-2 | D116: NA | E116: NA
A117: 141 | B117: Silver (total) | C117: 7440-22-4 | D117: NA | E117: NA
A118: 142 | B118: Styrene | C118: 100-42-5 | D118: NA | E118: 1 | F118: 0.85 | G118: =F118*10 -> 8.5
A119: 143 | B119: Tertiary butyl alcohol (TBA) | C119: 75-65-0 | D119: NA | E119: NA
A120: 144 | B120: 1,2,4,5-Tetrachlorobenzene | C120: 95-94-3 | D120: NA | E120: NA
A121: 145 | B121: 2,3,7,8-Tetrachlorodibenzo-p-dioxin | C121: 1746-01-6 | D121: NA | E121: NA
A122: 147 | B122: 1,1,2,2-Tetrachloroethane | C122: 79-34-5 | D122: NA | E122: NA | F122: 1.4 | G122: =F122*10 -> 14
A123: 148 | B123: Tetrachloroethene (PCE) (Tetrachloroethylene) | C123: 127-18-4 | D123: 2.6e-07 | E123: 0.04 | F123: 1.4 | G123: =F123*10 -> 14
A124: 149 | B124: 2,3,4,6-Tetrachlorophenol | C124: 58-90-2 | D124: NA | E124: NA
A125: 151 | B125: Toluene | C125: 108-88-3 | D125: NA | E125: 5 | F125: 0.75 | G125: =F125*10 -> 7.5
A126: 152 | B126: Toxaphene | C126: 8001-35-2 | D126: NA | E126: NA
A127: 153 | B127: 1,2,4-Trichlorobenzene | C127: 120-82-1 | D127: NA | E127: 0.002 | F127: 3.7 | G127: =F127*10 -> 37
A128: 154 | B128: 1,1,1-Trichloroethane | C128: 71-55-6 | D128: NA | E128: 5 | F128: 1.1 | G128: =F128*10 -> 11
A129: 155 | B129: 1,1,2-Trichloroethane | C129: 79-00-5 | D129: NA | E129: NA | F129: 1.1 | G129: =F129*10 -> 11
A130: 156 | B130: Trichloroethene (TCE) (Trichloroethylene) | C130: 79-01-6 | D130: 4.1e-06 | E130: 0.002 | F130: 1.1 | G130: =F130*10 -> 11
A131: 157 | B131: Trichlorofluoromethane (Freon 11) | C131: 75-69-4 | D131: NA | E131: NA | F131: 1.1 | G131: =F131*10 -> 11
A132: 158 | B132: 2,4,5-Trichlorophenol | C132: 95-95-4 | D132: NA | E132: NA
A133: 159 | B133: 2,4,6-Trichlorophenol | C133: 88-06-2 | D133: NA | E133: NA
A134: 160 | B134: 1,1,2-Trichloro-1,2,2-trifluoroethane (Freon TF) | C134: 76-13-1 | D134: NA | E134: 5 | F134: 1.5 | G134: =F134*10 -> 15
A135: 161 | B135: 1,2,4-Trimethylbenzene | C135: 95-63-6 | D135: NA | E135: 0.06 | F135: 0.98 | G135: =F135*10 -> 9.8
A136: 163 | B136: Vanadium (total) | C136: 7440-62-2 | D136: NA | E136: 0.0001
A137: 164 | B137: Vinyl chloride | C137: 75-01-4 | D137: 4.4e-06 | E137: 0.1 | F137: 0.51 | G137: =F137*10 -> 5.1
A138: 165 | B138: Xylenes (total) | C138: 1330-20-7 | D138: NA | E138: 0.1 | F138: 0.87 | G138: =F138*10 -> 8.7
A139: 166 | B139: Zinc (total) | C139: 7440-66-6 | D139: NA | E139: NA
B201: A from EPA Supplemental Guidance for Developing Soil Screening Levels for Superfund Sites (2002)
B202: B SCDM 1996
B203: C HSDB
B204: D J&E
B205: E Average of isomers
B206: F From WATER9
B207: G Calculated using WATER9
B208: H Calculated from log Kow using EPA SSL guidance - technical background document
B209: I CRC 1972
B210: J from EPA Technical Background document
B211: K Values obtained from sources other than the J&E spreadsheet may often be at temperatures other than the boiling point (e.g. room temperature). Temperature often not specified. However, uncertainty in measurement often higher than the adjustment to boiling point (WIKIPEDIA), so values from other temperatures judged to be OK.
B212: L If log Kow used, chemical group is used to determine which equation from EPA Soil Screening Guidance is used to calculate Koc.
B213: M SCDM 2004
B214: N NJDEP GWQS 2008
B215: O Interim Specific NJDEP GWQS 2009
B216: P Interim Generic QWQS 2009
B217: Q CALCULATED WITH WATER 8
B218: R HSDB 1999
B219: S SOIL SCREENING GUIDANCE USER'S GUIDE
B220: T FROM CHEMDAT8
B221: U KOW FROM SCDM 1996
B222: V pH 5.3
B223: W KOW FROM HSDB 1999
B224: X KOW CALCULATED USING WATER 8
B225: NOTE: Calculation of Henry's law at 40°C is done using equations from the Johnson and Ettinger spreadsheet (see Fact Sheet - Correcting the Henry's law constant for soil temperature, June 2001)
B226: AEGL-1 short-term inhalation reference concentrations are 1hr values that were divided by 10 as per NJDEP-Division of Air Quality Procedures. They were interim values as of February 2010
B227: ATSDR short-term inhalation reference concentrations are acute inhalation MRLs

Sheet VI-IASG-ExistChem-Res
A1: NJDEP 2021 Vapor Intrusion Residential Air, Soil Gas and Rapid Action Level Calculator | X1: Acetone | Y1: 67-64-1
A2: Site Name: | H2: Date: | L2: Calculated or locked cell | X2: Benzene | Y2: 71-43-2
A3: Contaminant: | G3: CAS No.: | H3: =CA100 -> 67-64-1 | L3: Required data entry | X3: Bromodichloromethane | Y3: 75-27-4
G4: Evaluated by: | L4: Optional data entry/modification | X4: Bromoform | Y4: 75-25-2
X5: Bromomethane (Methyl bromide) | Y5: 74-83-9
X6: 2-Butanone (Methyl ethyl ketone) (MEK) | Y6: 78-93-3
G7: Air Reporting Limit (µg/m3) = | I7: =VLOOKUP(H3,'Master database'!$C$2:$GK$455,MATCH("2018 Air analytical reporting limit, Method TO-15 (µg/m3)",'Master database'!$C$1:$GK$1,0),FALSE) -> 12 | X7: Carbon disulfide | Y7: 75-15-0
G8: Soil Gas Reporting Limit = | I8: =VLOOKUP(H3,'Master database'!$C$2:$GK$455,MATCH("2018 Soil gas analytical reporting limit, Method TO-15 (µg/m3)",'Master database'!$C$1:$GK$1,0),FALSE) -> 120 | X8: Carbon tetrachloride | Y8: 56-23-5
A9: Parameter | B9: Definition | D9: Units | E9: Default Scenario | X9: Chlorobenzene | Y9: 108-90-7
A10: TR | B10: Target Cancer Risk | D10: unitless | E10: 1e-06 | X10: Chloroethane (Ethyl chloride) | Y10: 75-00-3
A11: THQ | B11: Target Hazard Quotient | D11: unitless | E11: 1 | X11: Chloroform | Y11: 67-66-3
A12: AT | B12: Averaging Time | D12: days/year | E12: 365 | X12: Chloromethane (Methyl chloride) | Y12: 74-87-3
A13: LT | B13: Lifetime | D13: years | E13: 70 | X13: Cyclohexane | Y13: 110-82-7
A14: EF | B14: Residential Exposure Frequency | D14: days/year | E14: 350 | X14: Dibromochloromethane | Y14: 124-48-1
A15: ED | B15: Residential Exposure Duration | D15: years | E15: 26 | X15: 1,2-Dibromoethane (Ethylene dibromide) | Y15: 106-93-4
A16: ET | B16: Residential Exposure Time | D16: hours/day | E16: 24 | X16: 1,2-Dichlorobenzene (o-Dichlorobenzene) | Y16: 95-50-1
A17: IUR | B17: Inhalation Unit Risk | D17: (µg/m3)-1 | E17: =VLOOKUP(H3,'Master database'!$C$2:$GK$455,MATCH("2018 Standards Inhalation Unit Risk Factor (µg/m3)-1",'Master database'!$C$1:$GK$1,0),FALSE) -> NA | X17: 1,4-Dichlorobenzene (p-Dichlorobenzene) | Y17: 106-46-7
A18: RfC | B18: Inhalation Reference Concentration | D18: mg/m3 | E18: =VLOOKUP(H3,'Master database'!$C$2:$GK$455,MATCH("2018 Standards Inhalation Reference Concentration (mg/m3)",'Master database'!$C$1:$GK$1,0),FALSE) -> NA | X18: Dichlorodifluoromethane (Freon 12) | Y18: 75-71-8
A19: IAc | B19: Carcinogenic Indoor Air Human Health-Based Criterion | D19: µg/m3 | E19: =IF(ISERROR((E10*E12*E13)/(E14*E15*E16*(1/24)*E17)),"NA",Round_to_Even((E10*E12*E13)/(E14*E15*E16*(1/24)*E17))) -> NA | X19: 1,1-Dichloroethane | Y19: 75-34-3
A20: IAnc | B20: Non-carcinogenic Indoor Air Human Health-Based Criterion | D20: µg/m3 | E20: =IF(ISERROR((E11*E12*E15*1000)/(E14*E15*E16*(1/24)*(1/E18))),"NA",Round_to_Even((E11*E12*E15*1000)/(E14*E15*E16*(1/24)*(1/E18)))) -> NA | X20: 1,2-Dichloroethane | Y20: 107-06-2
A21: IA | B21: Indoor Air Human Health-Based Criterion | D21: µg/m3 | E21: =IF(E19="NA",E20,IF(E20="NA",E19,MIN(E19,E20))) -> NA | X21: 1,1-Dichloroethene (1,1-Dichloroethylene) | Y21: 75-35-4
A22: SGSL | B22: Human Health-Based Soil Gas Screening Criterion | D22: µg/m3 | E22: =IF(AND(E19="NA",E20="NA"),"NA",IF(E21=E19,Round_to_Even((E10*E12*E13)/(E14*E15*E16*(1/24)*E17*0.02)),Round_to_Even((E11*E12*E15*1000)/(E14*E15*E16*(1/24)*(1/E18)*0.02)))) -> NA | X22: 1,2-Dichloroethene (cis) (c-1,2-Dichloroethylene) | Y22: 156-59-2
A23: RAL | B23: Human Health-Based Rapid Action Criterion | D23: µg/m3 | E23: =IF(AND(E19="NA",E20="NA"),"NA",IF(E19="NA",Round_to_Even(2*E20),IF(E20="NA",100*E19,MIN(Round_to_Even(2*E20),100*E19)))) -> NA | X23: 1,2-Dichloroethene (trans) (t-1,2-Dichloroethylene) | Y23: 156-60-5
X24: 1,2-Dichloropropane | Y24: 78-87-5
X25: 1,3-Dichloropropene (total) | Y25: 542-75-6
A26: Residential Indoor Air Standard: | F26: =IF(E21="NA","NA",IF(E21<I7,I7,E21)) -> NA | G26: µg/m3 | H26: =IF(F26="NA","not of concern",IF(F26=I7,"Controlled by RL",IF(F26=E19,"Cancer-based",IF(F26=E20,"Noncancer-based","")))) -> not of concern | X26: 1,4-Dioxane | Y26: 123-91-1
X27: Ethylbenzene | Y27: 100-41-4
A28: Residential Soil Gas Screening Level: | F28: =IF(E22="NA","NA",IF(E22<I8,I8,E22)) -> NA | G28: µg/m3 | H28: =IF(F28="NA","",IF(F28=I8,"controlled by RL","")) ->  | X28: Hexachlorobutadiene | Y28: 87-68-3
X29: n-Hexane | Y29: 110-54-3
A30: Residential Rapid Action Level: | F30: =IF(E23="NA","NA",IF(E23<I7,I7,E23)) -> NA | G30: µg/m3 | H30: =IF(F30=I7,"Controlled by RL",IF(AND(E19<>"NA",E20<>"NA"),IF(F30=100*E19,"Cancer-based","Noncancer-based"),"")) ->  | X30: Mercury (elemental) | Y30: 7439-97-6
X31: Methylene chloride (Dichloromethane) | Y31: 75-09-2
X32: 4-Methyl-2-pentanone (MIBK) | Y32: 108-10-1
X33: Methyl tert-butyl ether (MTBE) | Y33: 1634-04-4
X34: Naphthalene | Y34: 91-20-3
X35: Styrene | Y35: 100-42-5
X36: 1,1,2,2-Tetrachloroethane | Y36: 79-34-5
X37: Tetrachloroethene (PCE) (Tetrachloroethylene) | Y37: 127-18-4
X38: Toluene | Y38: 108-88-3
X39: 1,2,4-Trichlorobenzene | Y39: 120-82-1
X40: 1,1,1-Trichloroethane | Y40: 71-55-6
X41: 1,1,2-Trichloroethane | Y41: 79-00-5
X42: Trichloroethene (TCE) (Trichloroethylene) | Y42: 79-01-6
X43: Trichlorofluoromethane | Y43: 75-69-4
X44: 1,1,2-Trichloro-1,2,2-trifluoroethane (Freon TF) | Y44: 76-13-1
X45: 1,2,4-Trimethylbenzene | Y45: 95-63-6
X46: Vinyl chloride | Y46: 75-01-4
X47: Xylenes (total) | Y47: 1330-20-7
CA100: 67-64-1

Sheet VI-IASG-NewChem-Res
A1: NJDEP 2021 Vapor Intrusion Residential Air, Soil Gas and Rapid Action Level Calculator
A2: Site Name: | H2: Date: | L2: Calculated or locked cell
A3: Contaminant: | G3: CAS No.: | L3: Required data entry
G4: Evaluated by: | L4: Optional data entry/modification
A9: Parameter | B9: Definition | D9: Units | E9: Default Scenario
A10: TR | B10: Target Cancer Risk | D10: unitless | E10: 1e-06
A11: THQ | B11: Target Hazard Quotient | D11: unitless | E11: 1
A12: AT | B12: Averaging Time | D12: days/year | E12: 365
A13: LT | B13: Lifetime | D13: years | E13: 70
A14: EF | B14: Residential Exposure Frequency | D14: days/year | E14: 350
A15: ED | B15: Residential Exposure Duration | D15: years | E15: 26
A16: ET | B16: Residential Exposure Time | D16: hours/day | E16: 24
A17: IUR | B17: Inhalation Unit Risk | D17: (µg/m3)-1 | E17: Optional Value Here
A18: RfC | B18: Inhalation Reference Concentration | D18: mg/m3 | E18: Optional Value Here
A19: IAc | B19: Carcinogenic Indoor Air Human Health-Based Criterion | D19: µg/m3 | E19: =IF(ISERROR((E10*E12*E13)/(E14*E15*E16*(1/24)*E17)),"NA",Round_to_Even((E10*E12*E13)/(E14*E15*E16*(1/24)*E17))) -> NA
A20: IAnc | B20: Non-carcinogenic Indoor Air Human Health-Based Criterion | D20: µg/m3 | E20: =IF(ISERROR((E11*E12*E15*1000)/(E14*E15*E16*(1/24)*(1/E18))),"NA",Round_to_Even((E11*E12*E15*1000)/(E14*E15*E16*(1/24)*(1/E18)))) -> NA
A21: IA | B21: Indoor Air Human Health-Based Criterion | D21: µg/m3 | E21: =IF(E19="NA",E20,IF(E20="NA",E19,MIN(E19,E20))) -> NA | F21: =IF(E21="NA","not of concern",IF(E21=E19,"Cancer-based",IF(E21=E20,"Noncancer-based",""))) -> not of concern
A22: SGSL | B22: Human Health-Based Soil Gas Screening Criterion | D22: µg/m3 | E22: =IF(AND(E19="NA",E20="NA"),"NA",IF(E21=E19,Round_to_Even((E10*E12*E13)/(E14*E15*E16*(1/24)*E17*0.02)),Round_to_Even((E11*E12*E15*1000)/(E14*E15*E16*(1/24)*(1/E18)*0.02)))) -> NA
A23: RAL | B23: Human Health-Based Rapid Action Criterion | D23: µg/m3 | E23: =IF(AND(E19="NA",E20="NA"),"NA",IF(E19="NA",Round_to_Even(2*E20),IF(E20="NA",100*E19,MIN(Round_to_Even(2*E20),100*E19)))) -> NA | F23: =IF(AND(E19<>"NA",E20<>"NA"),IF(E23=100*E19,"cancer-based","noncancer-based"),"") -> 

Sheet VI-IASG-ExistChem-Nonres
A1: NJDEP 2021 Vapor Intrusion Nonresidential Air, Soil Gas and Rapid Action Level Calculator | X1: Acetone | Y1: 67-64-1
A2: Site Name: | H2: Date: | L2: Calculated or locked cell | X2: Benzene | Y2: 71-43-2
A3: Contaminant: | G3: CAS No.: | H3: =CA100 -> 67-64-1 | L3: Required data entry | X3: Bromodichloromethane | Y3: 75-27-4
G4: Evaluated by: | L4: Optional data entry/modification | X4: Bromoform | Y4: 75-25-2
X5: Bromomethane (Methyl bromide) | Y5: 74-83-9
X6: 2-Butanone (Methyl ethyl ketone) (MEK) | Y6: 78-93-3
G7: Air Reporting Limit (µg/m3) = | I7: =VLOOKUP(H3,'Master database'!$C$2:$GK$455,MATCH("2018 Air analytical reporting limit, Method TO-15 (µg/m3)",'Master database'!$C$1:$GK$1,0),FALSE) -> 12 | X7: Carbon disulfide | Y7: 75-15-0
G8: Soil Gas Reporting Limit = | I8: =VLOOKUP(H3,'Master database'!$C$2:$GK$455,MATCH("2018 Soil gas analytical reporting limit, Method TO-15 (µg/m3)",'Master database'!$C$1:$GK$1,0),FALSE) -> 120 | X8: Carbon tetrachloride | Y8: 56-23-5
A9: Parameter | B9: Definition | D9: Units | E9: Default Scenario | F9: Alternative Scenario | X9: Chlorobenzene | Y9: 108-90-7
A10: TR | B10: Target Cancer Risk | D10: unitless | E10: 1e-06 | F10: 1e-06 | X10: Chloroethane (Ethyl chloride) | Y10: 75-00-3
A11: THQ | B11: Target Hazard Quotient | D11: unitless | E11: 1 | F11: 1 | X11: Chloroform | Y11: 67-66-3
A12: AT | B12: Averaging Time | D12: days/year | E12: 365 | F12: 365 | X12: Chloromethane (Methyl chloride) | Y12: 74-87-3
A13: LT | B13: Lifetime | D13: years | E13: 70 | F13: 70 | X13: Cyclohexane | Y13: 110-82-7
A14: EF | B14: Nonresidential Exposure Frequency | D14: days/year | E14: 250 | F14: 250 | G14: =IF(OR(F14<0,F14>365),"out of range",IF(F14<>250,"changed","")) ->  | X14: Dibromochloromethane | Y14: 124-48-1
A15: ED | B15: Nonresidential Exposure Duration | D15: years | E15: 25 | F15: 25 | X15: 1,2-Dibromoethane (Ethylene dibromide) | Y15: 106-93-4
A16: ET | B16: Nonresidential Exposure Time | D16: hours/day | E16: 8 | F16: 8 | G16: =IF(OR(F16<0,F16>24),"out of range",IF(F16<>8,"changed","")) ->  | X16: 1,2-Dichlorobenzene (o-Dichlorobenzene) | Y16: 95-50-1
A17: IUR | B17: Inhalation Unit Risk | D17: (µg/m3)-1 | E17: =VLOOKUP(H3,'Master database'!$C$2:$GK$455,MATCH("2018 Standards Inhalation Unit Risk Factor (µg/m3)-1",'Master database'!$C$1:$GK$1,0),FALSE) -> NA | F17: =E17 -> NA | X17: 1,4-Dichlorobenzene (p-Dichlorobenzene) | Y17: 106-46-7
A18: RfC | B18: Inhalation Reference Concentration | D18: mg/m3 | E18: =VLOOKUP(H3,'Master database'!$C$2:$GK$455,MATCH("2018 Standards Inhalation Reference Concentration (mg/m3)",'Master database'!$C$1:$GK$1,0),FALSE) -> NA | F18: =E18 -> NA | X18: Dichlorodifluoromethane (Freon 12) | Y18: 75-71-8
A19: IAc | B19: Carcinogenic Indoor Air Human Health-Based Criterion | D19: µg/m3 | E19: =IF(ISERROR((E10*E12*E13)/(E14*E15*E16*(1/24)*E17)),"NA",Round_to_Even((E10*E12*E13)/(E14*E15*E16*(1/24)*E17))) -> NA | F19: =IF(ISERROR((F10*F12*F13)/(F14*F15*F16*(1/24)*F17)),"NA",Round_to_Even((F10*F12*F13)/(F14*F15*F16*(1/24)*F17))) -> NA | X19: 1,1-Dichloroethane | Y19: 75-34-3
A20: IAnc | B20: Non-carcinogenic Indoor Air Human Health-Based Criterion | D20: µg/m3 | E20: =IF(ISERROR((E11*E12*E15*1000)/(E14*E15*E16*(1/24)*(1/E18))),"NA",Round_to_Even((E11*E12*E15*1000)/(E14*E15*E16*(1/24)*(1/E18)))) -> NA | F20: =IF(ISERROR((F11*F12*F15*1000)/(F14*F15*F16*(1/24)*(1/F18))),"NA",Round_to_Even((F11*F12*F15*1000)/(F14*F15*F16*(1/24)*(1/F18)))) -> NA | X20: 1,2-Dichloroethane | Y20: 107-06-2
A21: IA | B21: Indoor Air Human Health-Based Criterion | D21: µg/m3 | E21: =IF(E19="NA",E20,IF(E20="NA",E19,MIN(E19,E20))) -> NA | F21: =IF(F19="NA",F20,IF(F20="NA",F19,MIN(F19,F20))) -> NA | X21: 1,1-Dichloroethene (1,1-Dichloroethylene) | Y21: 75-35-4
A22: SGSL | B22: Human Health-Based Soil Gas Screening Criterion | D22: µg/m3 | E22: =IF(AND(E19="NA",E20="NA"),"NA",IF(E21=E19,Round_to_Even((E10*E12*E13)/(E14*E15*E16*(1/24)*E17*0.02)),Round_to_Even((E11*E12*E15*1000)/(E14*E15*E16*(1/24)*(1/E18)*0.02)))) -> NA | F22: =IF(AND(F19="NA",F20="NA"),"NA",IF(F21=F19,Round_to_Even((F10*F12*F13)/(F14*F15*F16*(1/24)*F17*0.02)),Round_to_Even((F11*F12*F15*1000)/(F14*F15*F16*(1/24)*(1/F18)*0.02)))) -> NA | X22: 1,2-Dichloroethene (cis) (c-1,2-Dichloroethylene) | Y22: 156-59-2
A23: RAL | B23: Human Health-Based Rapid Action Criterion | D23: µg/m3 | E23: =IF(AND(E19="NA",E20="NA"),"NA",IF(E19="NA",Round_to_Even(2*E20),IF(E20="NA",100*E19,MIN(Round_to_Even(2*E20),100*E19)))) -> NA | F23: =IF(AND(F19="NA",F20="NA"),"NA",IF(F19="NA",Round_to_Even(2*F20),IF(F20="NA",100*F19,MIN(Round_to_Even(2*F20),100*F19)))) -> NA | X23: 1,2-Dichloroethene (trans) (t-1,2-Dichloroethylene) | Y23: 156-60-5
X24: 1,2-Dichloropropane | Y24: 78-87-5
X25: 1,3-Dichloropropene (total) | Y25: 542-75-6
A26: Alternative Nonresidential Indoor Air Standard: | F26: =IF(F21="NA","NA",IF(F21<I7,I7,F21)) -> NA | G26: µg/m3 | H26: =IF(F26="NA","not of concern",IF(F26=I7,"controlled by RL",IF(F26=F19,"Cancer-based",IF(F26=F20,"Noncancer-based","")))) -> not of concern | X26: 1,4-Dioxane | Y26: 123-91-1
X27: Ethylbenzene | Y27: 100-41-4
A28: Alternative Nonresidential Soil Gas Screening Level: | F28: =IF(F22="NA","NA",IF(F22<I8,I8,F22)) -> NA | G28: µg/m3 | H28: =IF(F28="NA","",IF(F28=I8,"controlled by RL","")) ->  | X28: Hexachlorobutadiene | Y28: 87-68-3
X29: n-Hexane | Y29: 110-54-3
A30: Alternative Nonresidential Rapid Action Level: | F30: =IF(F23="NA","NA",IF(F23<I7,I7,F23)) -> NA | G30: µg/m3 | H30: =IF(F30=I7,"Controlled by RL",IF(AND(F19<>"NA",F20<>"NA"),IF(F30=100*F19,"Cancer-based","Noncancer-based"),"")) ->  | X30: Mercury (elemental) | Y30: 7439-97-6
X31: Methylene chloride (Dichloromethane) | Y31: 75-09-2
X32: 4-Methyl-2-pentanone (MIBK) | Y32: 108-10-1
X33: Methyl tert-butyl ether (MTBE) | Y33: 1634-04-4
X34: Naphthalene | Y34: 91-20-3
X35: Styrene | Y35: 100-42-5
X36: 1,1,2,2-Tetrachloroethane | Y36: 79-34-5
X37: Tetrachloroethene (PCE) (Tetrachloroethylene) | Y37: 127-18-4
X38: Toluene | Y38: 108-88-3
X39: 1,2,4-Trichlorobenzene | Y39: 120-82-1
X40: 1,1,1-Trichloroethane | Y40: 71-55-6
X41: 1,1,2-Trichloroethane | Y41: 79-00-5
X42: Trichloroethene (TCE) (Trichloroethylene) | Y42: 79-01-6
X43: Trichlorofluoromethane | Y43: 75-69-4
X44: 1,1,2-Trichloro-1,2,2-trifluoroethane (Freon TF) | Y44: 76-13-1
X45: 1,2,4-Trimethylbenzene | Y45: 95-63-6
X46: Vinyl chloride | Y46: 75-01-4
X47: Xylenes (total) | Y47: 1330-20-7
CA100: 67-64-1

Sheet VI-IASG-NewChem-Nonres
A1: NJDEP 2021 Vapor Intrusion Nonresidential Air, Soil Gas and Rapid Action Level Calculator
A2: Site Name: | H2: Date: | L2: Calculated or locked cell
A3: Contaminant: | G3: CAS No.: | L3: Required data entry
G4: Evaluated by: | L4: Optional data entry/modification
A9: Parameter | B9: Definition | D9: Units | E9: Default Scenario | F9: Alternative Scenario
A10: TR | B10: Target Cancer Risk | D10: unitless | E10: 1e-06 | F10: 1e-06
A11: THQ | B11: Target Hazard Quotient | D11: unitless | E11: 1 | F11: 1
A12: AT | B12: Averaging Time | D12: days/year | E12: 365 | F12: 365
A13: LT | B13: Lifetime | D13: years | E13: 70 | F13: 70
A14: EF | B14: Nonresidential Exposure Frequency | D14: days/year | E14: 250 | F14: 250 | G14: =IF(OR(F14<0,F14>365),"out of range",IF(F14<>250,"changed","")) -> 
A15: ED | B15: Nonresidential Exposure Duration | D15: years | E15: 25 | F15: 25
A16: ET | B16: Nonresidential Exposure Time | D16: hours/day | E16: 8 | F16: 8 | G16: =IF(OR(F16<0,F16>24),"out of range",IF(F16<>8,"changed","")) -> 
A17: IUR | B17: Inhalation Unit Risk | D17: (µg/m3)-1 | E17: Optional Value Here | F17: =IF(E17="Optional Value Here","",E17) -> 
A18: RfC | B18: Inhalation Reference Concentration | D18: mg/m3 | E18: Optional Value Here | F18: =IF(E18="Optional Value Here","",E18) -> 
A19: IAc | B19: Carcinogenic Indoor Air Human Health-Based Criterion | D19: µg/m3 | E19: =IF(ISERROR((E10*E12*E13)/(E14*E15*E16*(1/24)*E17)),"NA",Round_to_Even((E10*E12*E13)/(E14*E15*E16*(1/24)*E17))) -> NA | F19: =IF(ISERROR((F10*F12*F13)/(F14*F15*F16*(1/24)*F17)),"NA",Round_to_Even((F10*F12*F13)/(F14*F15*F16*(1/24)*F17))) -> NA
A20: IAnc | B20: Non-carcinogenic Indoor Air Human Health-Based Criterion | D20: µg/m3 | E20: =IF(ISERROR((E11*E12*E15*1000)/(E14*E15*E16*(1/24)*(1/E18))),"NA",Round_to_Even((E11*E12*E15*1000)/(E14*E15*E16*(1/24)*(1/E18)))) -> NA | F20: =IF(ISERROR((F11*F12*F15*1000)/(F14*F15*F16*(1/24)*(1/F18))),"NA",Round_to_Even((F11*F12*F15*1000)/(F14*F15*F16*(1/24)*(1/F18)))) -> NA
A21: IA | B21: Indoor Air Human Health-Based Criterion | D21: µg/m3 | E21: =IF(E19="NA",E20,IF(E20="NA",E19,MIN(E19,E20))) -> NA | F21: =IF(F19="NA",F20,IF(F20="NA",F19,MIN(F19,F20))) -> NA | G21: =IF(E21="NA","not of concern",IF(E21=E19,"Cancer-based",IF(E21=E20,"Noncancer-based",""))) -> not of concern
A22: SGSL | B22: Human Health-Based Soil Gas Screening Criterion | D22: µg/m3 | E22: =IF(AND(E19="NA",E20="NA"),"NA",IF(E21=E19,Round_to_Even((E10*E12*E13)/(E14*E15*E16*(1/24)*E17*0.02)),Round_to_Even((E11*E12*E15*1000)/(E14*E15*E16*(1/24)*(1/E18)*0.02)))) -> NA | F22: =IF(AND(F19="NA",F20="NA"),"NA",IF(F21=F19,Round_to_Even((F10*F12*F13)/(F14*F15*F16*(1/24)*F17*0.02)),Round_to_Even((F11*F12*F15*1000)/(F14*F15*F16*(1/24)*(1/F18)*0.02)))) -> NA
A23: RAL | B23: Human Health-Based Rapid Action Criterion | D23: µg/m3 | E23: =IF(AND(E19="NA",E20="NA"),"NA",IF(E19="NA",Round_to_Even(2*E20),IF(E20="NA",100*E19,MIN(Round_to_Even(2*E20),100*E19)))) -> NA | F23: =IF(AND(F19="NA",F20="NA"),"NA",IF(F19="NA",Round_to_Even(2*F20),IF(F20="NA",100*F19,MIN(Round_to_Even(2*F20),100*F19)))) -> NA | G23: =IF(AND(E19<>"NA",E20<>"NA"),IF(E23=100*E19,"cancer-based","noncancer-based"),"") -> 

Sheet Sheet1
